[Event "*** SCC Grand Prix: Titled Tuesday Blitz"]
[Site "Chess.com"]
[Date "2020.06.09"]
[Round "3"]
[White "ARTHURMOTIVATOR"]
[Black "lelajavakhishvili"]
[Result "1-0"]
[WhiteElo "2273"]
[BlackElo "2446"]
[TimeControl "180+1"]
[EndTime "9:29:30 PDT"]
[Termination "ARTHURMOTIVATOR won on time"]

1. e4 {[%clk 0:03:00.9]} 1... d6 {[%clk 0:02:58.5]} 2. d4 {[%clk 0:03:00.2]}
2... Nf6 {[%clk 0:02:58.2]} 3. Nc3 {[%clk 0:02:58.5]} 3... g6 {[%clk 0:02:58.3]}
4. Bg5 {[%clk 0:02:57]} 4... c6 {[%clk 0:02:56.2]} 5. Qd2 {[%clk 0:02:51.7]}
5... Nbd7 {[%clk 0:02:56]} 6. f4 {[%clk 0:02:49.4]} 6... b5 {[%clk 0:02:53.1]}
7. a3 {[%clk 0:02:40.9]} 7... Nb6 {[%clk 0:02:37.4]} 8. Nf3 {[%clk 0:02:28.7]}
8... Bg7 {[%clk 0:02:35.3]} 9. e5 {[%clk 0:02:11.4]} 9... Nfd5 {[%clk
0:02:32.9]} 10. Nxd5 {[%clk 0:02:11.2]} 10... Nxd5 {[%clk 0:02:33.1]} 11. Bd3
{[%clk 0:02:09.2]} 11... O-O {[%clk 0:02:31.6]} 12. O-O {[%clk 0:02:08]} 12...
f6 {[%clk 0:02:12.5]} 13. exf6 {[%clk 0:01:57.1]} 13... exf6 {[%clk 0:02:11.6]}
14. Bh4 {[%clk 0:01:56.8]} 14... Qc7 {[%clk 0:01:52.5]} 15. f5 {[%clk
0:01:53.5]} 15... gxf5 {[%clk 0:01:44.8]} 16. Bg3 {[%clk 0:01:52.1]} 16... f4
{[%clk 0:01:20.4]} 17. Bxf4 {[%clk 0:01:49.2]} 17... f5 {[%clk 0:01:13.3]} 18.
Rae1 {[%clk 0:01:40.3]} 18... Bd7 {[%clk 0:01:08.8]} 19. c4 {[%clk 0:01:12.3]}
19... bxc4 {[%clk 0:01:00.1]} 20. Bxc4 {[%clk 0:01:11.3]} 20... Rae8 {[%clk
0:00:55.6]} 21. Bxd5+ {[%clk 0:00:51.7]} 21... cxd5 {[%clk 0:00:55.1]} 22. Qb4
{[%clk 0:00:51.2]} 22... Rxe1 {[%clk 0:00:25.4]} 23. Rxe1 {[%clk 0:00:49.4]}
23... Rb8 {[%clk 0:00:26]} 24. Qxd6 {[%clk 0:00:27.2]} 24... Qxd6 {[%clk
0:00:25.7]} 25. Bxd6 {[%clk 0:00:26.8]} 25... Rxb2 {[%clk 0:00:21.5]} 26. Re7
{[%clk 0:00:26.4]} 26... Bb5 {[%clk 0:00:19.5]} 27. Be5 {[%clk 0:00:26.4]} 27...
Bh6 {[%clk 0:00:17.7]} 28. h3 {[%clk 0:00:20.9]} 28... Be3+ {[%clk 0:00:16.7]}
29. Kh2 {[%clk 0:00:20.9]} 29... Bf1 {[%clk 0:00:17.3]} 30. Nh4 {[%clk
0:00:20.2]} 30... f4 {[%clk 0:00:17]} 31. Rg7+ {[%clk 0:00:18.4]} 31... Kf8
{[%clk 0:00:16.7]} 32. Rg5 {[%clk 0:00:16.4]} 32... Ke8 {[%clk 0:00:15.3]} 33.
Rf5 {[%clk 0:00:15.8]} 33... Be2 {[%clk 0:00:11.9]} 34. Bxf4 {[%clk 0:00:14.5]}
34... Bxd4 {[%clk 0:00:12.2]} 35. Bg3 {[%clk 0:00:13.2]} 35... Bg7 {[%clk
0:00:09.9]} 36. Rxd5 {[%clk 0:00:12.7]} 36... Bc4 {[%clk 0:00:08.7]} 37. Rc5
{[%clk 0:00:12]} 37... Be6 {[%clk 0:00:07.5]} 38. Rc6 {[%clk 0:00:10.9]} 38...
Bd7 {[%clk 0:00:04.4]} 39. Rc7 {[%clk 0:00:10.3]} 39... a5 {[%clk 0:00:04.1]}
40. Rc5 {[%clk 0:00:08.6]} 40... a4 {[%clk 0:00:03.9]} 41. Nf5 {[%clk
0:00:08.6]} 41... Bf8 {[%clk 0:00:01.8]} 42. Re5+ {[%clk 0:00:07.9]} 42... Kf7
{[%clk 0:00:02.2]} 43. Ra5 {[%clk 0:00:05.8]} 43... Bc6 {[%clk 0:00:02.1]} 44.
Ne3 {[%clk 0:00:03.5]} 1-0

[Event "*** SCC Grand Prix: Titled Tuesday Blitz"]
[Site "Chess.com"]
[Date "2020.06.09"]
[Round "3"]
[White "sasko1234"]
[Black "chessfrendz"]
[Result "1/2-1/2"]
[WhiteElo "2472"]
[BlackElo "2325"]
[TimeControl "180+1"]
[EndTime "9:29:31 PDT"]
[Termination "Game drawn by agreement"]

1. b3 {[%clk 0:03:00.9]} 1... e5 {[%clk 0:02:57.5]} 2. Bb2 {[%clk 0:03:00.8]}
2... Nc6 {[%clk 0:02:56.9]} 3. e3 {[%clk 0:03:00.6]} 3... Nf6 {[%clk 0:02:56.3]}
4. Nf3 {[%clk 0:02:58.9]} 4... Bd6 {[%clk 0:02:54.6]} 5. Na3 {[%clk 0:02:57.8]}
5... e4 {[%clk 0:02:39.9]} 6. Nh4 {[%clk 0:02:28.9]} 6... Bxa3 {[%clk
0:02:22.8]} 7. Bxa3 {[%clk 0:02:28.2]} 7... d6 {[%clk 0:02:22.6]} 8. g3 {[%clk
0:02:24.3]} 8... g5 {[%clk 0:02:18.9]} 9. Ng2 {[%clk 0:02:22.7]} 9... Bg4 {[%clk
0:02:16.6]} 10. Be2 {[%clk 0:02:19.4]} 10... Ne5 {[%clk 0:02:09.5]} 11. Bb2
{[%clk 0:02:18.6]} 11... Bxe2 {[%clk 0:02:07]} 12. Qxe2 {[%clk 0:02:15.4]} 12...
Nf3+ {[%clk 0:02:06.4]} 13. Kd1 {[%clk 0:02:15.1]} 13... Qe7 {[%clk 0:02:01.5]}
14. Ne1 {[%clk 0:02:00.9]} 14... Nxe1 {[%clk 0:01:48.7]} 15. Rxe1 {[%clk
0:01:56.5]} 15... O-O-O {[%clk 0:01:48.1]} 16. a4 {[%clk 0:01:51.9]} 16... d5
{[%clk 0:01:43.8]} 17. a5 {[%clk 0:01:50.2]} 17... a6 {[%clk 0:01:41.3]} 18. Kc1
{[%clk 0:01:40.7]} 18... Rhg8 {[%clk 0:01:39.7]} 19. Rh1 {[%clk 0:01:30.1]}
19... Qe6 {[%clk 0:01:35.2]} 20. h4 {[%clk 0:01:18.9]} 20... g4 {[%clk
0:01:30.8]} 21. Rd1 {[%clk 0:01:15.1]} 21... h5 {[%clk 0:01:29.5]} 22. Kb1
{[%clk 0:00:58.7]} 22... Rg6 {[%clk 0:01:27.7]} 23. Rc1 {[%clk 0:00:42.9]} 23...
Kb8 {[%clk 0:01:21.4]} 24. Ra4 {[%clk 0:00:38.2]} 24... Nd7 {[%clk 0:01:09.7]}
25. Bd4 {[%clk 0:00:26.9]} 25... c5 {[%clk 0:01:01.3]} 26. Bb2 {[%clk
0:00:26.3]} 26... Ne5 {[%clk 0:00:59.8]} 27. Bxe5+ {[%clk 0:00:24.9]} 27... Qxe5
{[%clk 0:00:59.3]} 28. d4 {[%clk 0:00:23.7]} 28... exd3 {[%clk 0:00:52.6]} 29.
Qxd3 {[%clk 0:00:22.3]} 29... Rf6 {[%clk 0:00:51.7]} 30. Qd2 {[%clk 0:00:21.6]}
30... Rf3 {[%clk 0:00:50.2]} 31. Rd1 {[%clk 0:00:20.7]} 31... Rc8 {[%clk
0:00:42.3]} 32. Rf4 {[%clk 0:00:17.7]} 32... Rd8 {[%clk 0:00:36.7]} 33. Rxf3
{[%clk 0:00:17.3]} 33... gxf3 {[%clk 0:00:35.9]} 34. Qd3 {[%clk 0:00:18]} 34...
f5 {[%clk 0:00:33.7]} 35. Qd2 {[%clk 0:00:15.7]} 35... Qe4 {[%clk 0:00:33.1]}
36. Qd3 {[%clk 0:00:15.8]} 36... Kc8 {[%clk 0:00:31.2]} 37. Qxe4 {[%clk
0:00:15.3]} 37... dxe4 {[%clk 0:00:27.8]} 38. Rxd8+ {[%clk 0:00:14.5]} 38...
Kxd8 {[%clk 0:00:27.2]} 39. Kb2 {[%clk 0:00:15.2]} 39... Kd7 {[%clk 0:00:25.8]}
40. Kc3 {[%clk 0:00:15.7]} 40... Kd6 {[%clk 0:00:23.7]} 41. Kc4 {[%clk
0:00:16.2]} 41... Kc6 {[%clk 0:00:23.7]} 42. c3 {[%clk 0:00:14.7]} 42... Kd6
{[%clk 0:00:22.9]} 43. b4 {[%clk 0:00:14.9]} 43... cxb4 {[%clk 0:00:22.1]} 44.
cxb4 {[%clk 0:00:14.9]} 44... Kc6 {[%clk 0:00:21.8]} 45. Kd4 {[%clk 0:00:15]}
45... Kb5 {[%clk 0:00:20.6]} 46. Kc3 {[%clk 0:00:13]} 46... b6 {[%clk
0:00:20.3]} 47. axb6 {[%clk 0:00:12.5]} 47... Kxb6 {[%clk 0:00:20.4]} 48. Kc4
{[%clk 0:00:13.1]} 48... Kc6 {[%clk 0:00:20.3]} 49. Kd4 {[%clk 0:00:13.6]} 49...
Kb5 {[%clk 0:00:19.3]} 50. Kc3 {[%clk 0:00:13.7]} 50... Kb6 {[%clk 0:00:18.8]}
51. Kc4 {[%clk 0:00:13.6]} 51... Kc6 {[%clk 0:00:18.8]} 52. Kd4 {[%clk
0:00:13.9]} 52... Kb5 {[%clk 0:00:18.1]} 1/2-1/2

[Event "*** SCC Grand Prix: Titled Tuesday Blitz"]
[Site "Chess.com"]
[Date "2020.06.09"]
[Round "3"]
[White "QuintilianoR"]
[Black "GigaQuparadze"]
[Result "0-1"]
[WhiteElo "2634"]
[BlackElo "2839"]
[TimeControl "180+1"]
[EndTime "9:29:33 PDT"]
[Termination "GigaQuparadze won on time"]

1. d4 {[%clk 0:02:58.8]} 1... Nf6 {[%clk 0:02:58.4]} 2. c4 {[%clk 0:02:59]} 2...
e6 {[%clk 0:02:57.9]} 3. Nf3 {[%clk 0:02:58.9]} 3... b6 {[%clk 0:02:57.4]} 4. g3
{[%clk 0:02:59.3]} 4... Bb4+ {[%clk 0:02:54.3]} 5. Nbd2 {[%clk 0:02:58.1]} 5...
Ba6 {[%clk 0:02:53.6]} 6. Qc2 {[%clk 0:02:56.9]} 6... Bb7 {[%clk 0:02:52.4]} 7.
Bg2 {[%clk 0:02:57.1]} 7... Be4 {[%clk 0:02:51.8]} 8. Qb3 {[%clk 0:02:55.7]}
8... Bxd2+ {[%clk 0:02:49.5]} 9. Bxd2 {[%clk 0:02:55.3]} 9... O-O {[%clk
0:02:49.3]} 10. O-O {[%clk 0:02:54.9]} 10... d6 {[%clk 0:02:48.9]} 11. Rfd1
{[%clk 0:02:46.9]} 11... Nbd7 {[%clk 0:02:48]} 12. Bh3 {[%clk 0:02:46.1]} 12...
h6 {[%clk 0:02:41.3]} 13. Rac1 {[%clk 0:02:44.2]} 13... a5 {[%clk 0:02:39.6]}
14. Ne1 {[%clk 0:02:38.9]} 14... a4 {[%clk 0:02:38.1]} 15. Qe3 {[%clk
0:02:37.5]} 15... Bb7 {[%clk 0:02:36.1]} 16. f3 {[%clk 0:02:33.5]} 16... e5
{[%clk 0:02:34]} 17. Bc3 {[%clk 0:02:29]} 17... Re8 {[%clk 0:02:27.6]} 18. d5
{[%clk 0:02:17]} 18... b5 {[%clk 0:02:25.8]} 19. b3 {[%clk 0:02:13.3]} 19...
axb3 {[%clk 0:02:23.4]} 20. axb3 {[%clk 0:02:14.2]} 20... Nb6 {[%clk 0:02:23.7]}
21. Qd3 {[%clk 0:01:40.7]} 21... bxc4 {[%clk 0:02:22.1]} 22. bxc4 {[%clk
0:01:40.4]} 22... e4 {[%clk 0:02:19.2]} 23. fxe4 {[%clk 0:01:37.8]} 23... Nxe4
{[%clk 0:02:19.3]} 24. Bd4 {[%clk 0:01:38]} 24... Bc8 {[%clk 0:02:07.7]} 25. Bg2
{[%clk 0:01:37.1]} 25... Bf5 {[%clk 0:02:04.2]} 26. Qb3 {[%clk 0:01:35.7]} 26...
Nd7 {[%clk 0:01:59.7]} 27. Nf3 {[%clk 0:01:32.6]} 27... Ndc5 {[%clk 0:01:54.8]}
28. Qb2 {[%clk 0:01:30.1]} 28... Rb8 {[%clk 0:01:54.3]} 29. Qa2 {[%clk
0:01:28.3]} 29... Nb3 {[%clk 0:01:53.9]} 30. Rc2 {[%clk 0:01:19.9]} 30... Bg6
{[%clk 0:01:47.3]} 31. Re1 {[%clk 0:00:50.3]} 31... Nec5 {[%clk 0:01:39.8]} 32.
Bxc5 {[%clk 0:00:44.7]} 32... Nxc5 {[%clk 0:01:28.7]} 33. Rc3 {[%clk 0:00:37.6]}
33... Qf6 {[%clk 0:01:27.2]} 34. Ra3 {[%clk 0:00:36.6]} 34... Be4 {[%clk
0:01:19.9]} 35. Qd2 {[%clk 0:00:31]} 35... Rb2 {[%clk 0:01:17.1]} 36. Qd4 {[%clk
0:00:31]} 36... Qxd4+ {[%clk 0:01:04]} 37. Nxd4 {[%clk 0:00:31.9]} 37... Bxg2
{[%clk 0:01:03.8]} 38. Kxg2 {[%clk 0:00:32.8]} 38... Re4 {[%clk 0:01:03]} 39.
Rd1 {[%clk 0:00:31]} 39... Rb4 {[%clk 0:00:51.4]} 40. Rc3 {[%clk 0:00:29.4]}
40... g6 {[%clk 0:00:42.1]} 41. Kf3 {[%clk 0:00:28.8]} 41... h5 {[%clk
0:00:41.5]} 42. h4 {[%clk 0:00:27.6]} 42... Re8 {[%clk 0:00:40.6]} 43. Rdc1
{[%clk 0:00:17.9]} 43... Nd7 {[%clk 0:00:32.6]} 44. Re3 {[%clk 0:00:17.7]} 44...
Ne5+ {[%clk 0:00:32.3]} 45. Kg2 {[%clk 0:00:17.9]} 45... Ra8 {[%clk 0:00:31.1]}
46. Nf3 {[%clk 0:00:14]} 46... Rxc4 {[%clk 0:00:25.4]} 47. Rxc4 {[%clk
0:00:13.2]} 47... Nxc4 {[%clk 0:00:26.3]} 48. Re7 {[%clk 0:00:13.7]} 48... Rc8
{[%clk 0:00:23.8]} 49. Ng5 {[%clk 0:00:08.4]} 49... Ne5 {[%clk 0:00:22.7]} 50.
Nf3 {[%clk 0:00:01.4]} 50... Kf8 {[%clk 0:00:21.1]} 51. Nxe5 {[%clk 0:00:01.8]}
51... Kxe7 {[%clk 0:00:19.7]} 0-1

[Event "*** SCC Grand Prix: Titled Tuesday Blitz"]
[Site "Chess.com"]
[Date "2020.06.09"]
[Round "3"]
[White "WIDBIFS"]
[Black "amintabatabaei"]
[Result "1-0"]
[WhiteElo "2668"]
[BlackElo "2872"]
[TimeControl "180+1"]
[EndTime "9:29:34 PDT"]
[Termination "WIDBIFS won by resignation"]

1. d4 {[%clk 0:03:00.9]} 1... Nf6 {[%clk 0:02:37.8]} 2. Nf3 {[%clk 0:03:01.4]}
2... d5 {[%clk 0:02:36.5]} 3. Bf4 {[%clk 0:03:01.9]} 3... Bf5 {[%clk 0:02:36.3]}
4. e3 {[%clk 0:03:02]} 4... e6 {[%clk 0:02:36.9]} 5. c4 {[%clk 0:03:02.3]} 5...
Bxb1 {[%clk 0:02:37.2]} 6. Qxb1 {[%clk 0:03:02.6]} 6... Bb4+ {[%clk 0:02:37.3]}
7. Kd1 {[%clk 0:03:03.3]} 7... Bd6 {[%clk 0:02:36.7]} 8. Bg3 {[%clk 0:03:01.9]}
8... O-O {[%clk 0:02:25.7]} 9. Bd3 {[%clk 0:02:59.2]} 9... dxc4 {[%clk
0:02:25.5]} 10. Bxc4 {[%clk 0:02:59.5]} 10... c5 {[%clk 0:02:25.8]} 11. Ke2
{[%clk 0:02:54.7]} 11... Nc6 {[%clk 0:02:20.5]} 12. Rd1 {[%clk 0:02:44.3]} 12...
Bxg3 {[%clk 0:02:00.3]} 13. hxg3 {[%clk 0:02:42.8]} 13... cxd4 {[%clk
0:02:00.3]} 14. Nxd4 {[%clk 0:02:43.7]} 14... Qc7 {[%clk 0:01:56.6]} 15. Bb3
{[%clk 0:02:24.8]} 15... Rfd8 {[%clk 0:00:35.7]} 16. Nxc6 {[%clk 0:02:16]} 16...
Qxc6 {[%clk 0:00:36.6]} 17. f3 {[%clk 0:01:57.8]} 17... Ng4 {[%clk 0:00:23.6]}
18. Qc2 {[%clk 0:01:45.9]} 18... Qxc2+ {[%clk 0:00:17.2]} 19. Bxc2 {[%clk
0:01:46.8]} 19... Nf6 {[%clk 0:00:17.6]} 20. e4 {[%clk 0:01:43.8]} 20... h6
{[%clk 0:00:13.2]} 21. Bb3 {[%clk 0:01:41.9]} 21... Kf8 {[%clk 0:00:13.1]} 22.
Rac1 {[%clk 0:01:41.8]} 22... Rxd1 {[%clk 0:00:12.8]} 23. Kxd1 {[%clk
0:01:40.5]} 23... Rd8+ {[%clk 0:00:13.3]} 24. Ke2 {[%clk 0:01:41]} 24... Ke7
{[%clk 0:00:14.2]} 25. Ke3 {[%clk 0:01:40.3]} 25... Rd7 {[%clk 0:00:12.1]} 26.
Ba4 {[%clk 0:01:40.2]} 26... b5 {[%clk 0:00:09.2]} 27. Bxb5 {[%clk 0:01:39.9]}
27... Rb7 {[%clk 0:00:09.9]} 28. a4 {[%clk 0:01:35.3]} 28... a6 {[%clk
0:00:10.4]} 29. Bxa6 {[%clk 0:01:35.7]} 29... Rxb2 {[%clk 0:00:10.6]} 30. Ra1
{[%clk 0:01:26.6]} 30... Rxg2 {[%clk 0:00:10.1]} 31. a5 {[%clk 0:01:21.1]} 31...
Nd7 {[%clk 0:00:10.3]} 32. Bb5 {[%clk 0:01:13.9]} 32... Nc5 {[%clk 0:00:10.5]}
33. a6 {[%clk 0:01:13.4]} 33... Nxa6 {[%clk 0:00:09.9]} 34. Rxa6 {[%clk
0:01:11.9]} 34... Rxg3 {[%clk 0:00:10.3]} 35. Ra7+ {[%clk 0:01:12.5]} 35... Kf8
{[%clk 0:00:10.6]} 36. Ra8+ {[%clk 0:01:08.8]} 36... Ke7 {[%clk 0:00:10.7]} 37.
e5 {[%clk 0:01:05.6]} 37... f6 {[%clk 0:00:10.9]} 38. Ra7+ {[%clk 0:01:02.8]}
38... Kf8 {[%clk 0:00:10.9]} 39. Bc4 {[%clk 0:01:01.6]} 39... fxe5 {[%clk
0:00:09.1]} 40. Bxe6 {[%clk 0:01:02]} 40... Rg6 {[%clk 0:00:05.2]} 41. Bd5
{[%clk 0:00:59.1]} 41... Rg5 {[%clk 0:00:03.1]} 42. Ke4 {[%clk 0:00:51.3]} 42...
h5 {[%clk 0:00:03.2]} 43. Rf7+ {[%clk 0:00:38]} 43... Ke8 {[%clk 0:00:03.4]} 44.
Rf5 {[%clk 0:00:38.9]} 44... Rxf5 {[%clk 0:00:01.9]} 45. Kxf5 {[%clk 0:00:39.8]}
45... Ke7 {[%clk 0:00:02.5]} 46. Kxe5 {[%clk 0:00:39.9]} 46... g6 {[%clk
0:00:02.5]} 47. f4 {[%clk 0:00:39.1]} 47... h4 {[%clk 0:00:02.7]} 48. Bg2 {[%clk
0:00:34.7]} 48... Kf7 {[%clk 0:00:03]} 49. Bh3 {[%clk 0:00:35.2]} 49... Kg7
{[%clk 0:00:02]} 50. Ke6 {[%clk 0:00:33.9]} 50... Kh6 {[%clk 0:00:01.6]} 51. Kf6
{[%clk 0:00:34.3]} 51... Kh5 {[%clk 0:00:02.1]} 52. Bd7 {[%clk 0:00:32.2]} 52...
h3 {[%clk 0:00:01.6]} 53. Bxh3 {[%clk 0:00:30.8]} 53... Kh6 {[%clk 0:00:02.3]}
54. Bg4 {[%clk 0:00:30.1]} 54... Kh7 {[%clk 0:00:02.5]} 55. Kg5 {[%clk
0:00:30.7]} 55... Kg7 {[%clk 0:00:03.1]} 56. Be2 {[%clk 0:00:31.6]} 1-0

[Event "*** SCC Grand Prix: Titled Tuesday Blitz"]
[Site "Chess.com"]
[Date "2020.06.09"]
[Round "3"]
[White "MF1966Idrisov"]
[Black "Semetey"]
[Result "1/2-1/2"]
[WhiteElo "2285"]
[BlackElo "2527"]
[TimeControl "180+1"]
[EndTime "9:29:34 PDT"]
[Termination "Game drawn - insufficient material"]

1. Nf3 {[%clk 0:03:00.9]} 1... g6 {[%clk 0:02:57.1]} 2. b3 {[%clk 0:03:00.8]}
2... Bg7 {[%clk 0:02:56.7]} 3. d4 {[%clk 0:03:00.9]} 3... c5 {[%clk 0:02:56.3]}
4. Bb2 {[%clk 0:03:00.9]} 4... Nc6 {[%clk 0:02:56.7]} 5. e3 {[%clk 0:03:00.7]}
5... cxd4 {[%clk 0:02:56.7]} 6. exd4 {[%clk 0:03:00.2]} 6... d5 {[%clk
0:02:55.7]} 7. h3 {[%clk 0:02:59.5]} 7... Nf6 {[%clk 0:02:55.5]} 8. Bd3 {[%clk
0:02:58.5]} 8... Bf5 {[%clk 0:02:56]} 9. O-O {[%clk 0:02:56.9]} 9... O-O {[%clk
0:02:54.9]} 10. Bxf5 {[%clk 0:02:56.4]} 10... gxf5 {[%clk 0:02:55.8]} 11. Ne5
{[%clk 0:02:46.1]} 11... e6 {[%clk 0:02:40.9]} 12. Nxc6 {[%clk 0:02:43.1]} 12...
bxc6 {[%clk 0:02:40.8]} 13. Nd2 {[%clk 0:02:43.3]} 13... Ne4 {[%clk 0:02:39]}
14. Nxe4 {[%clk 0:02:42.7]} 14... fxe4 {[%clk 0:02:38.8]} 15. f3 {[%clk
0:02:43]} 15... f5 {[%clk 0:02:38.9]} 16. fxe4 {[%clk 0:02:37.4]} 16... fxe4
{[%clk 0:02:37.6]} 17. Qg4 {[%clk 0:02:36.4]} 17... Qd7 {[%clk 0:02:33.2]} 18.
Kh1 {[%clk 0:02:31.5]} 18... Kh8 {[%clk 0:02:29.2]} 19. Rxf8+ {[%clk 0:02:28.2]}
19... Rxf8 {[%clk 0:02:28]} 20. Ba3 {[%clk 0:02:28.3]} 20... Rf2 {[%clk
0:02:26.4]} 21. Qg3 {[%clk 0:02:18.7]} 21... Qf7 {[%clk 0:01:51.4]} 22. Bc5
{[%clk 0:02:00.4]} 22... Rxc2 {[%clk 0:01:43.5]} 23. Qb8+ {[%clk 0:01:51.4]}
23... Qg8 {[%clk 0:01:42.7]} 24. Qxa7 {[%clk 0:01:46.7]} 24... Bh6 {[%clk
0:00:40.4]} 25. Rg1 {[%clk 0:01:40.4]} 25... Bf4 {[%clk 0:00:36.4]} 26. Qe7
{[%clk 0:01:31.5]} 26... Bg5 {[%clk 0:00:26.9]} 27. Qc7 {[%clk 0:01:27.1]} 27...
h5 {[%clk 0:00:24.8]} 28. Qe5+ {[%clk 0:01:23.4]} 28... Kh7 {[%clk 0:00:24.3]}
29. h4 {[%clk 0:01:14.6]} 29... Bh6 {[%clk 0:00:20.6]} 30. Qxh5 {[%clk
0:01:12.2]} 30... e3 {[%clk 0:00:20.7]} 31. Bd6 {[%clk 0:01:06.4]} 31... e2
{[%clk 0:00:19.9]} 32. Bf4 {[%clk 0:01:04]} 32... Qg6 {[%clk 0:00:17.9]} 33.
Qxh6+ {[%clk 0:01:00.2]} 33... Qxh6 {[%clk 0:00:17.7]} 34. Bxh6 {[%clk
0:01:00.1]} 34... Kxh6 {[%clk 0:00:18.6]} 35. Re1 {[%clk 0:00:59.9]} 35... Kh5
{[%clk 0:00:18]} 36. Kg1 {[%clk 0:00:59.3]} 36... Kxh4 {[%clk 0:00:17.2]} 37.
Kf2 {[%clk 0:00:59.4]} 37... Rxa2 {[%clk 0:00:17.7]} 38. Rxe2 {[%clk 0:00:59.3]}
38... Ra3 {[%clk 0:00:16]} 39. Rxe6 {[%clk 0:00:58.4]} 39... Rxb3 {[%clk
0:00:16.3]} 40. Rxc6 {[%clk 0:00:58.3]} 40... Kg4 {[%clk 0:00:16.7]} 41. Re6
{[%clk 0:00:57.3]} 41... Rd3 {[%clk 0:00:15.3]} 42. Re8 {[%clk 0:00:55.2]} 42...
Rxd4 {[%clk 0:00:15.3]} 43. Rg8+ {[%clk 0:00:55]} 43... Kf5 {[%clk 0:00:15]} 44.
Rf8+ {[%clk 0:00:55]} 44... Ke5 {[%clk 0:00:14.6]} 45. Kf3 {[%clk 0:00:54.7]}
45... Rd3+ {[%clk 0:00:14.5]} 46. Ke2 {[%clk 0:00:54.8]} 46... Ra3 {[%clk
0:00:14.3]} 47. Re8+ {[%clk 0:00:54.2]} 47... Kd4 {[%clk 0:00:14.6]} 48. Kf2
{[%clk 0:00:52.8]} 48... Ra2+ {[%clk 0:00:13.4]} 49. Kf3 {[%clk 0:00:51.1]}
49... Kc3 {[%clk 0:00:13.8]} 50. g4 {[%clk 0:00:50.9]} 50... d4 {[%clk
0:00:14.2]} 51. Rc8+ {[%clk 0:00:50.9]} 51... Kd2 {[%clk 0:00:13.8]} 52. g5
{[%clk 0:00:50.8]} 52... d3 {[%clk 0:00:14]} 53. Kf4 {[%clk 0:00:50.9]} 53...
Ke2 {[%clk 0:00:12.8]} 54. Re8+ {[%clk 0:00:49.7]} 54... Kd1 {[%clk 0:00:12.4]}
55. g6 {[%clk 0:00:48.9]} 55... Ra7 {[%clk 0:00:12.4]} 56. Kf5 {[%clk
0:00:47.4]} 56... d2 {[%clk 0:00:12.7]} 57. Rd8 {[%clk 0:00:46.6]} 57... Ke1
{[%clk 0:00:12.7]} 58. Re8+ {[%clk 0:00:46.4]} 58... Kf2 {[%clk 0:00:13]} 59.
Rd8 {[%clk 0:00:45.8]} 59... Ke2 {[%clk 0:00:13.4]} 60. Kf6 {[%clk 0:00:44.9]}
60... d1=Q {[%clk 0:00:12.7]} 61. Rxd1 {[%clk 0:00:43.4]} 61... Kxd1 {[%clk
0:00:13.6]} 62. g7 {[%clk 0:00:43.3]} 62... Ra6+ {[%clk 0:00:14]} 63. Kf7 {[%clk
0:00:43.2]} 63... Ra7+ {[%clk 0:00:14.4]} 64. Kf8 {[%clk 0:00:43.1]} 64... Ra8+
{[%clk 0:00:15.3]} 65. Kf7 {[%clk 0:00:43.4]} 65... Rb8 {[%clk 0:00:15.2]} 66.
g8=Q {[%clk 0:00:42.1]} 66... Rxg8 {[%clk 0:00:15.5]} 67. Kxg8 {[%clk
0:00:41.8]} 1/2-1/2

[Event "*** SCC Grand Prix: Titled Tuesday Blitz"]
[Site "Chess.com"]
[Date "2020.06.09"]
[Round "3"]
[White "CHESSMASTER759"]
[Black "Quiet_Desperation"]
[Result "1-0"]
[WhiteElo "2600"]
[BlackElo "1904"]
[TimeControl "180+1"]
[EndTime "9:29:34 PDT"]
[Termination "CHESSMASTER759 won by resignation"]

1. e4 {[%clk 0:02:48.1]} 1... e6 {[%clk 0:02:58.3]} 2. d4 {[%clk 0:02:46.4]}
2... d5 {[%clk 0:02:58]} 3. Nd2 {[%clk 0:02:43.9]} 3... Nf6 {[%clk 0:02:56.5]}
4. e5 {[%clk 0:02:40.9]} 4... Nfd7 {[%clk 0:02:55.3]} 5. Bd3 {[%clk 0:02:38.7]}
5... c5 {[%clk 0:02:54.4]} 6. c3 {[%clk 0:02:37.5]} 6... Nc6 {[%clk 0:02:53]} 7.
Ne2 {[%clk 0:02:37]} 7... cxd4 {[%clk 0:02:51.3]} 8. cxd4 {[%clk 0:02:36.1]}
8... f6 {[%clk 0:02:51.4]} 9. exf6 {[%clk 0:02:36.9]} 9... Nxf6 {[%clk 0:02:51]}
10. O-O {[%clk 0:02:36.6]} 10... Bd6 {[%clk 0:02:50.9]} 11. Nf3 {[%clk
0:02:35.8]} 11... Qc7 {[%clk 0:02:50.5]} 12. Bg5 {[%clk 0:02:20.9]} 12... O-O
{[%clk 0:02:49.3]} 13. Bh4 {[%clk 0:02:20.9]} 13... Nh5 {[%clk 0:02:47]} 14. Rc1
{[%clk 0:02:01.5]} 14... g6 {[%clk 0:01:39.4]} 15. Nc3 {[%clk 0:01:56.1]} 15...
a6 {[%clk 0:01:35.8]} 16. Re1 {[%clk 0:01:55]} 16... Qg7 {[%clk 0:01:23.9]} 17.
Bb1 {[%clk 0:01:51.1]} 17... Bd7 {[%clk 0:01:20.4]} 18. a3 {[%clk 0:01:44.5]}
18... Rxf3 {[%clk 0:01:07.6]} 19. Qxf3 {[%clk 0:01:21.5]} 19... Nxd4 {[%clk
0:01:05.4]} 20. Qd3 {[%clk 0:01:19.2]} 20... Nf4 {[%clk 0:00:55.5]} 21. Qd1
{[%clk 0:01:09.3]} 21... Rf8 {[%clk 0:00:37.8]} 22. Bg3 {[%clk 0:01:08.8]} 22...
Bc6 {[%clk 0:00:25.5]} 23. f3 {[%clk 0:01:03.7]} 23... e5 {[%clk 0:00:22.5]} 24.
Ba2 {[%clk 0:00:56.6]} 24... Qf7 {[%clk 0:00:15.8]} 25. Bxf4 {[%clk 0:00:50.3]}
25... Qxf4 {[%clk 0:00:15.6]} 26. Nxd5 {[%clk 0:00:47]} 26... Bxd5 {[%clk
0:00:15.9]} 27. Bxd5+ {[%clk 0:00:47.7]} 27... Kh8 {[%clk 0:00:16.2]} 28. Re4
{[%clk 0:00:32.4]} 28... Qg5 {[%clk 0:00:16.1]} 29. Kh1 {[%clk 0:00:24.9]} 29...
Nf5 {[%clk 0:00:14.8]} 30. Bxb7 {[%clk 0:00:18.8]} 30... Bb8 {[%clk 0:00:10.8]}
31. Rc2 {[%clk 0:00:12.2]} 31... Ne3 {[%clk 0:00:08.9]} 32. Qc1 {[%clk
0:00:09.5]} 32... Ba7 {[%clk 0:00:07.7]} 33. Re2 {[%clk 0:00:04.9]} 33... Rd8
{[%clk 0:00:07.6]} 34. R4xe3 {[%clk 0:00:04.2]} 34... Bxe3 {[%clk 0:00:07.7]}
35. Rxe3 {[%clk 0:00:04.3]} 35... Rd4 {[%clk 0:00:06.3]} 36. Re1 {[%clk
0:00:03.7]} 36... Qd8 {[%clk 0:00:05.7]} 37. Qc3 {[%clk 0:00:03.5]} 37... Rd1
{[%clk 0:00:05.3]} 38. Qxe5+ {[%clk 0:00:03.4]} 38... Kg8 {[%clk 0:00:05.7]} 39.
g3 {[%clk 0:00:03.2]} 39... Qd2 {[%clk 0:00:04.1]} 40. Rxd1 {[%clk 0:00:01.7]}
40... Qxd1+ {[%clk 0:00:04.8]} 41. Kg2 {[%clk 0:00:02.6]} 41... Qc2+ {[%clk
0:00:05.2]} 42. Kh3 {[%clk 0:00:03.5]} 42... Qc5 {[%clk 0:00:03.6]} 43. Bd5+
{[%clk 0:00:04.4]} 43... Kf8 {[%clk 0:00:03.3]} 44. Qf6+ {[%clk 0:00:04.1]}
44... Ke8 {[%clk 0:00:04.2]} 45. Be6 {[%clk 0:00:03.7]} 45... Qd6 {[%clk
0:00:03.6]} 46. Qf7+ {[%clk 0:00:03.3]} 46... Kd8 {[%clk 0:00:04]} 47. Qd7+
{[%clk 0:00:04.2]} 47... Qxd7 {[%clk 0:00:04]} 48. Bxd7 {[%clk 0:00:05.1]} 48...
Kxd7 {[%clk 0:00:04.9]} 49. Kg4 {[%clk 0:00:05.4]} 49... a5 {[%clk 0:00:05.8]}
1-0